Cogmind - Beta 16.1 @@@ ROGUE MODE // 2026.03.09 @ 17:05:58 Player: Minty Result: Destroyed by J6-728(R) with Subdweller Machine Gun Performance ------------- Evolutions (0) 0 Regions Visited (3) 600 Robots Destroyed (4) 20 Value Destroyed (160) 160 Prototype IDs (4) 80 Alien Tech Used (0) 0 Bonus (0) 0 TOTAL SCORE: 860 Bonus ------- None Cogmind --------- Core Integrity 0/250 Matter 272/300 Energy 100/100 System Corruption 0% Temperature Cool (0) Movement Core (50) Location -10/Subcaves Parts ------- > --- POWER (1) -------- (None) > --- PROPULSION (2) --- Improved Hover Unit > --- UTILITY (2) ------ Targeting Computer > --- WEAPON (2) ------- (None) > --- INVENTORY (5) ---- Arachnoskeleton Small Storage Unit Medium Storage Unit Peak State ------------ > --- POWER ------------ Subdweller Power Source > --- PROPULSION ------- Improved Hover Unit Improved Hover Unit > --- UTILITY ---------- Small Storage Unit Targeting Computer > --- WEAPON ----------- Subdweller Laser Assault Rifle > --- INVENTORY -------- Arachnoskeleton Improved Hover Unit Improved Hover Unit Medium Storage Unit Plasma Cutter Plasma Cutter [Rating: 14] Favorites ----------- Power Ion Engine Engine Ion Engine Propulsion Improved Hover Unit Leg Aluminum Leg Hover Unit Improved Hover Unit Utility Small Storage Unit Device Disposable Heat Sink Storage Small Storage Unit Processor Targeting Computer Weapon Assault Rifle Energy Gun Subdweller Laser Ballistic Gun Assault Rifle Build | -11 -10 -10 -10 ------- Run | Yrd Mat Min Sub Slots Evolved . | . . . . Power . | . . . . Propulsion . | . . . . Utility . | . . . . Weapon . | . . . . Parts Attached 10 | . 5 . 5 Power 2 | . 1 . 1 Engine 2 | . 1 . 1 Core . | . . . . Reactor . | . . . . Propulsion 4 | . 2 . 2 Treads . | . . . . Leg . | . . . . Wheel . | . . . . Hover 4 | . 2 . 2 Flight . | . . . . Utility 2 | . 2 . . Device 1 | . 1 . . Storage . | . . . . Processor 1 | . 1 . . Hackware . | . . . . Protection . | . . . . Artifact . | . . . . Weapon 2 | . . . 2 Energy Gun 1 | . . . 1 Energy Cannon . | . . . . Ballistic Gun 1 | . . . 1 Ballistic Cannon . | . . . . Launcher . | . . . . Special Weapon . | . . . . Impact Weapon . | . . . . Slashing Weapon . | . . . . Piercing Weapon . | . . . . Special Melee Weapon . | . . . . Unidentified Prototypes . | . . . . Parts Lost 4 | . . . 4 Power 1 | . . . 1 Propulsion 1 | . . . 1 Utility . | . . . . Weapon 2 | . . . 2 Highest Loss Streak 3 | . . . 3 To Critical Strikes . | . . . . Average Backups 7 | . 7 8 6 Power . | . . . . Propulsion 3 | . 3 4 2 Utility 1 | . . 2 1 Weapon . | . . . . Tool/Special . | . . . . Unused Backups 19 | . 11 . 8 Power 1 | . 1 . . Propulsion 9 | . 6 . 3 Utility 3 | . 1 . 2 Weapon 4 | . 3 . 1 Tool/Special 2 | . . . 2 Average Slot Usage (%) 97 | . 96 100 96 Engine 13 | . 14 14 12 Leg 1 | . 4 . . Hover 26 | . 23 28 27 Storage 13 | . 14 14 13 Processor 12 | . 8 14 14 Energy Gun 1 | . . . 3 Ballistic Gun 26 | . 28 28 23 Peak Build Rating 14 | . 11 10 14 Average Rating 10 | . 9 10 11 On Entrance 8 | 6 6 10 10 Avg Prop Armor Cover (%) . | . . . . Naked Turns . | . . . . Heaviest Build 16 | 12 14 14 16 Greatest Support 20 | 20 20 14 14 Greatest Overweight (x) 1 | . 1 . 1 Average Overweight (x) . | . . . . Largest Inventory Capacity 8 | . 8 8 8 Average Capacity 7 | . 8 8 7 Most Carried 8 | . 8 8 8 Average Carried 7 | . 7 8 7 Final Capacity 8 | 8 8 8 5 Final Carried 8 | 6 8 8 5 Class Distribution -------------------- 100% | Mutant Dominant Class ---------------- Mutant | -10/Materials Mutant | -10/Mines Mutant | -10/Subcaves Resources | -11 -10 -10 -10 ----------- Run | Yrd Mat Min Sub Matter Collected 364 | 200 . 50 114 Remotely . | . . . . Salvage Created 182 | . . . 182 Parts 17 | . . . 17 Haulers Intercepted . | . . . . Recyclers Shooed . | . . . . Parts Field Recycled . | . . . . Retrieved Matter . | . . . . Parts Self-Destructed . | . . . . Prevented . | . . . . Parts Restored . | . . . . Kills | -11 -10 -10 -10 ------- Run | Yrd Mat Min Sub Combat Hostiles Destroyed 4 | . . . 4 Guns 4 | . . . 4 Classes Destroyed 1 | . . . 1 Subdweller 4 | . . . 4 Best Kill Streak 3 | . . . 3 Combat Bots Only 3 | . . . 3 Max Kills in Single Turn 1 | . . . 1 Gunslinging . | . . . . Exploded . | . . . . Melee . | . . . . Uniques/NPCs Destroyed . | . . . . Combat | -11 -10 -10 -10 -------- Run | Yrd Mat Min Sub Hostile Shots Fired 54 | . . . 54 Missed 22 | . . . 22 Hits 32 | . . . 32 Projectile 32 | . . . 32 Damage Taken 717 | . . . 717 Core 256 | . . . 256 Absorbed by Shields . | . . . . Core Remaining (%) 100 | 100 . . . Volleys Fired 24 | . . . 24 Largest 2 | . . . 2 Hottest 80 | . . . 80 Shots Fired 48 | . . . 48 Gun 48 | . . . 48 Cannon . | . . . . Launcher . | . . . . Special . | . . . . Kinetic 34 | . . . 34 Thermal 14 | . . . 14 Explosive . | . . . . Electromagnetic . | . . . . Robot Hit Streak 12 | . . . 12 Robot Miss Streak 3 | . . . 3 Penetration Max . | . . . . Secondary Targets 2 | . . . 2 Max Gunslinging Chain 1 | . . . 1 Shots Hit Robots 38 | . . . 38 Core Hits 10 | . . . 10 Critical Kills . | . . . . Critical Parts Destroyed . | . . . . Critical Strikes . | . . . . Melee Attacks . | . . . . Impact . | . . . . Slashing . | . . . . Piercing . | . . . . Sneak Attacks . | . . . . Combat Hostiles . | . . . . Follow-up Attacks . | . . . . Damage Inflicted 524 | . . . 524 Guns 524 | . . . 524 Cannons . | . . . . Explosions . | . . . . Melee . | . . . . Ramming . | . . . . Kinetic 310 | . . . 310 Thermal 214 | . . . 214 Explosive . | . . . . Electromagnetic . | . . . . Impact . | . . . . Slashing . | . . . . Piercing . | . . . . Highest Corruption . | . . . . Average Corruption . | . . . . Corruption Purged . | . . . . Corruption Blocked . | . . . . Overload Shots . | . . . . Overflow Damage . | . . . . Projectiles . | . . . . Explosions . | . . . . Melee . | . . . . Knockbacks . | . . . . Impact . | . . . . Kinetic . | . . . . Secondary . | . . . . Self-Inflicted Damage . | . . . . Shots . | . . . . Rammed . | . . . . Targets Rammed . | . . . . Kicked . | . . . . Crushed . | . . . . Highest Temperature . | . . . . Average Temperature . | . . . . Received Heat Transfer 120 | . . . 120 Siege Activations . | . . . . Martial Activations . | . . . . Shielding Activations . | . . . . Robots Disrupted . | . . . . Combat Hostiles . | . . . . Robots Corrupted . | . . . . Combat Hostiles . | . . . . Parts Fried . | . . . . Impact Corruptions . | . . . . Robots Melted . | . . . . Combat Hostiles . | . . . . Parts Melted 1 | . . . 1 Heat Transferred 275 | . . . 275 Parts Sabotaged . | . . . . Parts Stolen . | . . . . Parts Stripped . | . . . . Power Chain Reactions . | . . . . Alert | -11 -10 -10 -10 ------- Run | Yrd Mat Min Sub Maximum Alert Level . | . . . . Low Security (%) 100 | . 100 100 . Level 1 . | . . . . Level 2 . | . . . . Level 3 . | . . . . Level 4 . | . . . . Level 5 . | . . . . High Security . | . . . . Max Security . | . . . . Peak Influence 11 | . 11 . . Initial . | . . . . Average . | . 1 . . Influence Increases 23 | . 23 . . Successful Hack 23 | . 23 . . Influence Decreases 23 | . 22 1 . Entered New Map 1 | . . 1 . Time Decay 22 | . 22 . . Squads Dispatched . | . . . . Investigation . | . . . . Extermination . | . . . . Reinforcement . | . . . . Assault . | . . . . Garrison . | . . . . Intercept . | . . . . Searches Triggered . | . . . . Construction Impeded . | . . . . Haulers Reinforced . | . . . . Active Scanning Responses . | . . . . Cargo Convoy Interrupts . | . . . . Stealth | -11 -10 -10 -10 --------- Run | Yrd Mat Min Sub Distress Signals . | . . . . Communications Jammed . | . . . . Distress Signals . | . . . . Times Spotted 12 | . . . 12 Peak Tracking Total 4 | . . . 4 Tactical Retreats 2 | . . . 2 Traps | -11 -10 -10 -10 ------- Run | Yrd Mat Min Sub Traps Triggered . | . . . . Indirectly . | . . . . Trap Hack Attempts . | . . . . Triggered . | . . . . Disarmed . | . . . . Reprogrammed . | . . . . Reused . | . . . . Traps Extracted . | . . . . Installed . | . . . . Triggered . | . . . . Machines | -11 -10 -10 -10 ---------- Run | Yrd Mat Min Sub Machines Disabled . | . . . . Max in Single Turn . | . . . . Machines Repaired . | . . . . Machines Dismantled . | . . . . Machines Sabotaged . | . . . . Overloaded Fab Kills . | . . . . Hacking | -11 -10 -10 -10 --------- Run | Yrd Mat Min Sub Machines Accessed 5 | . 5 . . Terminals 5 | . 5 . . Fabricators . | . . . . Repair Stations . | . . . . Recycling Units . | . . . . Scanalyzers . | . . . . Garrison Access . | . . . . Total Hacks 19 | . 19 . . Successful 7 | . 7 . . Failed 11 | . 11 . . Catastrophic 2 | . 2 . . Database Lockouts 1 | . 1 . . Manual 5 | . 5 . . Terminals 19 | . 19 . . Fabricators . | . . . . Repair Stations . | . . . . Recycling Units . | . . . . Scanalyzers . | . . . . Garrison Access . | . . . . Terminal Hacks 7 | . 7 . . Robot Analysis 1 | . 1 . . Prototype ID Bank 2 | . 2 . . Branch Access Points 1 | . 1 . . Emergency Access Points 1 | . 1 . . Locate Traps 1 | . 1 . . Registered Components 1 | . 1 . . Fabricator Hacks . | . . . . Repair Station Hacks . | . . . . Recycling Unit Hacks . | . . . . Scanalyzer . | . . . . Garrison Access Hacks . | . . . . Unauthorized Hacks . | . . . . Terminals . | . . . . Fabricators . | . . . . Repair Stations . | . . . . Recycling Units . | . . . . Scanalyzers . | . . . . Garrison Access . | . . . . Data Cores Recovered . | . . . . Used . | . . . . Hacking Detections 5 | . 5 . . Full Trace Events 1 | . 1 . . Feedback Events . | . . . . Feedback Blocked . | . . . . Robot Schematics Acquired . | . . . . Robots Built . | . . . . Authchips . | . . . . Time . | . . . . Total Robot Build Rating . | . . . . Part Schematics Acquired . | . . . . Parts Built . | . . . . Authchips . | . . . . Time . | . . . . Total Part Build Rating . | . . . . Part Studies Acquired . | . . . . Parts Repaired . | . . . . Time . | . . . . Parts Recycled . | . . . . Recycled Matter . | . . . . Retrieved Matter . | . . . . Retrieved Components . | . . . . Parts Scanalyzed . | . . . . Part Schematics Acquired . | . . . . Parts Damaged . | . . . . Bothacking | -11 -10 -10 -10 ------------ Run | Yrd Mat Min Sub Used RIF Installer . | . . . . Robots Hacked . | . . . . Non-combat . | . . . . Combat . | . . . . Robot Hacks Applied . | . . . . Relay Couplers Released . | . . . . Fabnet Peak Effective % . | . . . . Robots Rewired . | . . . . Allies Hacked . | . . . . Hacks Repelled . | . . . . Allies | -11 -10 -10 -10 -------- Run | Yrd Mat Min Sub Total Allies . | . . . . Largest Group . | . . . . Highest-Rated Group . | . . . . Highest-Rated Ally . | . . . . Total Orders . | . . . . Ally Attacks . | . . . . Total Damage . | . . . . Kills . | . . . . Allies Corrupted . | . . . . Allies Melted . | . . . . Intel | -11 -10 -10 -10 ------- Run | Yrd Mat Min Sub Active Infowar (turns) . | . . . . Robot Analysis Total 1 | . 1 . . Derelict Logs Recovered . | . . . . Drone Launches . | . . . . Drone Recoveries . | . . . . Exploration | -11 -10 -10 -10 ------------- Run | Yrd Mat Min Sub Turns Passed 621 | . 181 184 256 Spaces Moved 837 | 1 267 272 297 Core 5 | . . . 5 Treads . | . . . . Legs 18 | 1 17 . . Wheels . | . . . . Hover 814 | . 250 272 292 Flight . | . . . . Fastest Speed 50 | 120 56 56 50 Average Speed 57 | 120 60 56 56 Slowest Speed 130 | 120 130 56 116 Overloaded Moves . | . . . . Propulsion Burnouts . | . . . . Robots Hopped . | . . . . Potential Cave-ins . | . . . . Cave-ins Triggered . | . . . . Exploration Rate (%) 30 | 2 43 48 27 Regions Visited 3 Branch Regions 2 Pre-discovered Areas . | . . . . Known Exits Taken 1 | . 1 . . Unknown Exits Taken 2 | 1 . 1 . Scrap Searched 1 | . . 1 . Spaces Dug . | . . . . Terrain Destroyed . | . . . . Melee . | . . . . Projectile . | . . . . AOE . | . . . . Terrain Rammed . | . . . . Walls Destroyed . | . . . . Machines Disabled . | . . . . Actions | -11 -10 -10 -10 --------- Run | Yrd Mat Min Sub Total 929 | . 287 303 339 Wait 32 | . . 32 . Move 834 | . 266 271 297 Hop . | . . . . Pick Up 10 | . 9 . 1 Fast Attach 3 | . 1 . 2 Attach 1 | . . . 1 Detach 2 | . . . 2 Swap 7 | . 4 . 3 Drop 16 | . 7 . 9 Fire 24 | . . . 24 Melee . | . . . . Ram . | . . . . Kick . | . . . . Crush . | . . . . Escape Stasis . | . . . . Rewire . | . . . . Trap . | . . . . Miscellaneous . | . . . . Route ------- -11/Scrapyard -10/Materials (discovered 3 exits: [*Mat] / *Min x2) -10/Mines -10/Subcaves (discovered 1 exit: [*Mat]) History --------- Turn | Location | Event 1 | -11/Scrapyard | Discovered new exit (range 0) 1 | -11/Scrapyard | Entered Materials 61 | -10/Materials | Identified exit to Mines 160 | -10/Materials | Discovered new exit (range 3) 167 | -10/Materials | Central database locked down 182 | -10/Materials | Entered Mines 316 | -10/Mines | Build established: Mutant 352 | -10/Mines | Discovered new exit (range 5) 366 | -10/Mines | Entered Subcaves 367 | -10/Subcaves | Approached by a straggling Scientist 478 | -10/Subcaves | A Subdweller sparked back to life 478 | -10/Subcaves | A Subdweller sparked back to life 478 | -10/Subcaves | A Subdweller sparked back to life 491 | -10/Subcaves | Found Prototype Leg 521 | -10/Subcaves | Core integrity fell below 50% 558 | -10/Subcaves | Discovered new exit (range 15) 622 | -10/Subcaves | Core integrity fell below 20% 622 | -10/Subcaves | Destroyed by J6-728(R) with Subdweller Machine Gun Last Messages --------------- 00519_ 6M-YSL(R) affixes Scrap Shield Fragment to Scrap Shield. 00522_ 6M-YSL(R) destroyed. 00525_ Acquired 46 matter. 00527_ Acquired Sub. Power Source. 00528_ Acquired 38 matter. 00533_ Dropped Imp. Hover Unit. 00534_ Acquired 20 matter. 00537_ Acquired Assault Rifle. 00538_ Acquired 10 matter. 00558_ EXIT=FOUND 00559_ AH-8EV(R) emerges from the Twisted Machinery. 00596_ Assault Rifle destroyed. 00599_ AH-8EV(R) destroyed. 00599_ Switching to secondary target: IY-6P5(R). 00603_ IY-6P5(R) affixes Scrap Shield Fragment to Scrap Shield. 00612_ Dropped Plasma Cutter. 00617_ Imp. Hover Unit destroyed. 00617_ Assault Rifle destroyed. 00618_ Dropped Sub. Power Source. 00619_ Dropped Sub. Laser. Map ----- +----------------------------------------------------+ | ??????????????????????????????????????###??#?#?### | | ??????????????????????????????????#### #### ### | | ???????????????????????????????#### | | ???????????????????????????????# # "=&" | | ???????????????????????????????# " &!%& # ##?# | | ??????????????????????????????## " =&!##?????# | | ??????????????????????????????# =&%&&#??????## | | ??????????????????????????????# !=&###??????#### | | ??????????????????????????????### =*=#???????# # | | ????????????????????????????????### ###?????## | | ?????????????????????????????????# ##??### | | ?????????????????????????????????## #?## ## | | ??????????????????????????????????## #?# | | ??????????????????????????????????## #?# | | ?????????????????????????????????## ##?# | | ????????????????????????????????## #### | | ???????????????????????????????## ### | | ???????????????????????????????# #### #### | | ???????????????????????????????## #?## #??? | | ????????????????????????????????## ### ##?? | | ???????????????????????????????### ## #?? | | ???????????????????????????????# #?? | | ???????????????????????????????# #?? | | ???????????????????????###?###?##### ######?? | | ??????????????#######?## ### ####### ##??????? | | ?????????????## ### @## ## #???????? | | ?????????????# [ RR% ##?#???##? | | ?????????????# * R! &## #?? ### ## | | ?????????????## ||## ## ##?? # | | ??????????????#; ##### ## ##??? # | | ?????????????### #???# ## #????# # | | ?????????????# #??? ### ##???# | | ????????????## #?? ## ## ##### | | ????????????# #?# ### ## ## | | ????????????#### #?## ##?# | | ???????????????# ##??##?# | | ???????????????# ##??????## ## | | ???????????????####????????##?### | | ????????????????????????????????## | | ?????????????????????????????????####### | | ???????????????????????????????????????# | | ???????????????????????????????????????# | | ???????????????????????????????????????### | | ?????????????????????????????????????????## | | ??????????????????????????????????????????## "" | | ???????????????????????????????????????????# "" | | ???????????????????????????????????????????# "" | | ?????????????????????????????????????????? "" | | ?????????????????????????????????????????? """" | | ????????????????????????????????????????? """"" | +----------------------------------------------------+ Best States ------------- Heat Dissipation 25 Coolant Potential 50 Energy Generation 15 Energy Capacity 250 Matter Stores 300 Matter Capacity 300 Sight Range 16 Terrain Scan Density 10 Evasion (%) 53 Targeting Accuracy 5 Item Schematics ----------------- None Robot Schematics ------------------ None Fabricated ------------ Nothing Repaired ---------- Nothing Studied --------- None Alien Tech Used ----------------- None Achievements -------------- None Challenges ------------ None Game ------ Seed LauncherRecyclingAirjet Manual? 0 Play Time 00:08:57 Cumulative 1263.2 hours Start 2026.03.09 @ 16:54:14 End 2026.03.09 @ 17:05:58 Sessions 1 Manual Loads 0 Difficulty Rogue Special Mode None Game No. 1554 Rogue 1270 Adventurer 124 Explorer 160 Win Type - Total 61 Types 47/0/8/4/1/0/0/1/0/0 Lore% 93 Gallery% 83 Achievement% 68 Wizard Run 0 Options --------- Layout 0 ASCII 0 Keyboard 1 Movement Numpad Keybinds 0 Fullscreen 2 Font 18/X11 Map View 76x50 Zoom Use 0% Tactical HUD 1 Map Filters NONE Filters NONE Steam 1 RUN: 0000eaf7-b086-4750-b8c7-e8a38c590c02